[Event "*** Titled Tuesday Blitz"]
[Site "Chess.com"]
[Date "2020.12.01"]
[Round "4"]
[White "kagg1125"]
[Black "Sanan_Sjugirov"]
[Result "1/2-1/2"]
[WhiteElo "2556"]
[BlackElo "2878"]
[TimeControl "180+1"]
[EndTime "10:38:24 PST"]
[Termination "Game drawn by repetition"]

1. e4 {[%clk 0:03:00.9]} 1... c5 {[%clk 0:02:58]} 2. Nf3 {[%clk 0:03:00.7]} 2...
e6 {[%clk 0:02:58.5]} 3. g3 {[%clk 0:03:00.5]} 3... Nc6 {[%clk 0:02:57.2]} 4.
Bg2 {[%clk 0:02:59.9]} 4... Nf6 {[%clk 0:02:55.6]} 5. Nc3 {[%clk 0:02:58.9]}
5... d5 {[%clk 0:02:54.9]} 6. exd5 {[%clk 0:02:59.8]} 6... Nxd5 {[%clk
0:02:52.2]} 7. Nxd5 {[%clk 0:02:40.3]} 7... Qxd5 {[%clk 0:02:37.9]} 8. O-O
{[%clk 0:02:39.6]} 8... Be7 {[%clk 0:02:37.9]} 9. d4 {[%clk 0:02:35]} 9... O-O
{[%clk 0:02:28.2]} 10. Ne5 {[%clk 0:01:56.2]} 10... Qxd4 {[%clk 0:02:28]} 11.
Nxc6 {[%clk 0:01:56]} 11... bxc6 {[%clk 0:02:27.5]} 12. Bf4 {[%clk 0:01:47.2]}
12... Ba6 {[%clk 0:02:12.5]} 13. Re1 {[%clk 0:01:46.5]} 13... Rad8 {[%clk
0:01:47]} 14. Qxd4 {[%clk 0:01:40]} 14... cxd4 {[%clk 0:01:45.8]} 15. Bxc6
{[%clk 0:01:39]} 15... Rc8 {[%clk 0:01:40.6]} 16. Be4 {[%clk 0:01:38.9]} 16...
Rfd8 {[%clk 0:01:34.2]} 17. Red1 {[%clk 0:01:29.8]} 17... f6 {[%clk 0:01:23.5]}
18. a3 {[%clk 0:01:20.3]} 18... g5 {[%clk 0:01:22.6]} 19. Bd2 {[%clk 0:01:18.6]}
19... f5 {[%clk 0:01:22.4]} 20. Bd3 {[%clk 0:01:14.8]} 20... Bxd3 {[%clk
0:01:22.2]} 21. cxd3 {[%clk 0:01:15.7]} 21... Rc2 {[%clk 0:01:22.7]} 22. Bb4
{[%clk 0:01:00.9]} 22... Kf7 {[%clk 0:01:13.5]} 23. Bxe7 {[%clk 0:00:48.8]}
23... Kxe7 {[%clk 0:01:14.4]} 24. Rab1 {[%clk 0:00:46.5]} 24... Rdc8 {[%clk
0:01:05.8]} 25. Kf1 {[%clk 0:00:45.6]} 25... Kd6 {[%clk 0:01:04.8]} 26. h3
{[%clk 0:00:39.2]} 26... h5 {[%clk 0:01:03.5]} 27. a4 {[%clk 0:00:35.2]} 27...
e5 {[%clk 0:01:00.7]} 28. b4 {[%clk 0:00:34.7]} 28... Ra2 {[%clk 0:01:00.4]} 29.
b5 {[%clk 0:00:33.8]} 29... Rcc2 {[%clk 0:00:59.1]} 30. b6 {[%clk 0:00:28.3]}
30... Rxf2+ {[%clk 0:00:56.7]} 31. Kg1 {[%clk 0:00:27.8]} 31... Rg2+ {[%clk
0:00:56.5]} 32. Kf1 {[%clk 0:00:28.3]} 32... axb6 {[%clk 0:00:53]} 33. Rxb6+
{[%clk 0:00:29.2]} 33... Kc7 {[%clk 0:00:47.2]} 34. Rdb1 {[%clk 0:00:27.5]}
34... f4 {[%clk 0:00:21.5]} 35. Rb7+ {[%clk 0:00:24.6]} 35... Kd6 {[%clk
0:00:21.7]} 36. R1b6+ {[%clk 0:00:23.1]} 36... Kd5 {[%clk 0:00:20.1]} 37. Rb5+
{[%clk 0:00:22.7]} 37... Kc6 {[%clk 0:00:17.2]} 38. R5b6+ {[%clk 0:00:21.9]}
38... Kc5 {[%clk 0:00:17.6]} 39. Rb5+ {[%clk 0:00:22.2]} 39... Kc6 {[%clk
0:00:18.5]} 40. R5b6+ {[%clk 0:00:22.6]} 40... Kc5 {[%clk 0:00:19.1]} 41. Rb5+
{[%clk 0:00:22.9]} 41... Kc6 {[%clk 0:00:18.9]} 1/2-1/2

[Event "*** Titled Tuesday Blitz"]
[Site "Chess.com"]
[Date "2020.12.01"]
[Round "4"]
[White "Keures"]
[Black "biostatistician"]
[Result "0-1"]
[WhiteElo "2241"]
[BlackElo "2575"]
[TimeControl "180+1"]
[EndTime "10:38:28 PST"]
[Termination "biostatistician won by resignation"]

1. d4 {[%clk 0:03:00.9]} 1... Nf6 {[%clk 0:02:56.6]} 2. c4 {[%clk 0:03:00.4]}
2... g6 {[%clk 0:02:57]} 3. Nc3 {[%clk 0:03:00.1]} 3... Bg7 {[%clk 0:02:57.9]}
4. e4 {[%clk 0:02:59.9]} 4... d6 {[%clk 0:02:58.5]} 5. Nf3 {[%clk 0:02:59.8]}
5... O-O {[%clk 0:02:59.4]} 6. h3 {[%clk 0:03:00.2]} 6... c5 {[%clk 0:02:58.6]}
7. d5 {[%clk 0:02:56.3]} 7... e6 {[%clk 0:02:58]} 8. Bd3 {[%clk 0:02:54.8]} 8...
exd5 {[%clk 0:02:57.3]} 9. cxd5 {[%clk 0:02:55.7]} 9... a6 {[%clk 0:02:46.1]}
10. a4 {[%clk 0:02:55.2]} 10... Nbd7 {[%clk 0:02:45.9]} 11. O-O {[%clk
0:02:49.1]} 11... Nh5 {[%clk 0:02:46.2]} 12. g4 {[%clk 0:02:41.7]} 12... Nhf6
{[%clk 0:02:45.7]} 13. Bf4 {[%clk 0:02:40.6]} 13... Qe7 {[%clk 0:02:43.7]} 14.
Re1 {[%clk 0:02:32.9]} 14... Ne5 {[%clk 0:02:43.7]} 15. Nxe5 {[%clk 0:02:31.8]}
15... dxe5 {[%clk 0:02:44.6]} 16. Bg5 {[%clk 0:02:27.1]} 16... h6 {[%clk
0:02:44.2]} 17. Bh4 {[%clk 0:02:27.3]} 17... Qd6 {[%clk 0:02:15.1]} 18. a5
{[%clk 0:02:18.7]} 18... h5 {[%clk 0:02:14.1]} 19. f3 {[%clk 0:02:16.4]} 19...
hxg4 {[%clk 0:02:08.2]} 20. hxg4 {[%clk 0:02:15.6]} 20... Nh7 {[%clk 0:02:03.6]}
21. Na4 {[%clk 0:02:10.5]} 21... Bd7 {[%clk 0:02:03.8]} 22. Nb6 {[%clk
0:02:10.2]} 22... Rae8 {[%clk 0:02:03.9]} 23. Qe2 {[%clk 0:02:05.8]} 23... Bh6
{[%clk 0:02:01.9]} 24. Nc4 {[%clk 0:01:59.4]} 24... Qb8 {[%clk 0:01:52.2]} 25.
Bg3 {[%clk 0:01:57.9]} 25... Ng5 {[%clk 0:01:43.1]} 26. Kg2 {[%clk 0:01:41]}
26... Bg7 {[%clk 0:01:29.4]} 27. Qe3 {[%clk 0:01:33]} 27... f6 {[%clk
0:01:18.4]} 28. Qxc5 {[%clk 0:01:27.6]} 28... f5 {[%clk 0:01:03.1]} 29. gxf5
{[%clk 0:01:19.3]} 29... gxf5 {[%clk 0:01:04]} 30. Nb6 {[%clk 0:01:18.9]} 30...
fxe4 {[%clk 0:00:59.4]} 31. Nxd7 {[%clk 0:01:07.2]} 31... exf3+ {[%clk
0:00:54.2]} 32. Kf2 {[%clk 0:00:59.9]} 32... Nh3+ {[%clk 0:00:50.2]} 33. Kf1
{[%clk 0:00:59.7]} 33... Qd8 {[%clk 0:00:44.1]} 34. Nxf8 {[%clk 0:00:50.6]}
34... Qg5 {[%clk 0:00:40.1]} 35. Qf2 {[%clk 0:00:13.3]} 35... Nxf2 {[%clk
0:00:38]} 36. Kxf2 {[%clk 0:00:14.2]} 36... Qd2+ {[%clk 0:00:30.5]} 37. Be2
{[%clk 0:00:14.3]} 37... Rxf8 {[%clk 0:00:26.4]} 0-1

[Event "*** Titled Tuesday Blitz"]
[Site "Chess.com"]
[Date "2020.12.01"]
[Round "4"]
[White "scarabee43"]
[Black "PetrolulSah"]
[Result "1-0"]
[WhiteElo "2570"]
[BlackElo "2219"]
[TimeControl "180+1"]
[EndTime "10:38:34 PST"]
[Termination "scarabee43 won on time"]

1. d4 {[%clk 0:03:00.9]} 1... Nf6 {[%clk 0:02:56.1]} 2. c4 {[%clk 0:03:01.4]}
2... g6 {[%clk 0:02:53.7]} 3. Nc3 {[%clk 0:03:00.8]} 3... d5 {[%clk 0:02:52.2]}
4. cxd5 {[%clk 0:03:00.5]} 4... Nxd5 {[%clk 0:02:51.7]} 5. e4 {[%clk 0:03:01]}
5... Nxc3 {[%clk 0:02:50.5]} 6. bxc3 {[%clk 0:03:01.8]} 6... Bg7 {[%clk
0:02:50.5]} 7. Nf3 {[%clk 0:03:02.5]} 7... c5 {[%clk 0:02:49.9]} 8. Bb5+ {[%clk
0:03:03.2]} 8... Bd7 {[%clk 0:02:49.4]} 9. Be2 {[%clk 0:03:02.5]} 9... O-O
{[%clk 0:02:49.1]} 10. O-O {[%clk 0:03:01.9]} 10... cxd4 {[%clk 0:02:46.3]} 11.
cxd4 {[%clk 0:03:02.2]} 11... Nc6 {[%clk 0:02:46.7]} 12. Be3 {[%clk 0:03:02.9]}
12... Bg4 {[%clk 0:02:40.7]} 13. d5 {[%clk 0:02:49.1]} 13... Ne5 {[%clk
0:01:55.7]} 14. Nxe5 {[%clk 0:02:48.4]} 14... Bxe2 {[%clk 0:01:55.6]} 15. Qxe2
{[%clk 0:02:49.1]} 15... Bxe5 {[%clk 0:01:55.6]} 16. Rad1 {[%clk 0:02:48.5]}
16... b6 {[%clk 0:01:50.6]} 17. Bh6 {[%clk 0:02:44.7]} 17... Re8 {[%clk
0:01:40.8]} 18. f4 {[%clk 0:02:39.5]} 18... Bg7 {[%clk 0:01:33.2]} 19. Bxg7
{[%clk 0:02:38.9]} 19... Kxg7 {[%clk 0:01:32.6]} 20. e5 {[%clk 0:02:26.5]} 20...
Rc8 {[%clk 0:01:32.2]} 21. f5 {[%clk 0:02:20.8]} 21... Rc5 {[%clk 0:01:26]} 22.
Qe3 {[%clk 0:01:56.1]} 22... f6 {[%clk 0:00:59.2]} 23. Qf3 {[%clk 0:01:12.1]}
23... fxe5 {[%clk 0:00:46.1]} 24. fxg6 {[%clk 0:01:10.9]} 24... Rf8 {[%clk
0:00:36.4]} 25. Qh5 {[%clk 0:01:02.8]} 25... hxg6 {[%clk 0:00:27.4]} 26. Qxe5+
{[%clk 0:01:02]} 26... Kh7 {[%clk 0:00:26.8]} 27. Rfe1 {[%clk 0:00:50.3]} 27...
Rf7 {[%clk 0:00:16]} 28. Re3 {[%clk 0:00:44.8]} 28... Kg8 {[%clk 0:00:06.1]} 29.
Rh3 {[%clk 0:00:39.4]} 29... Rh7 {[%clk 0:00:06.2]} 30. Qe6+ {[%clk 0:00:33.1]}
30... Kg7 {[%clk 0:00:06.3]} 31. Rf3 {[%clk 0:00:32.8]} 31... Kh6 {[%clk
0:00:04.1]} 32. Rh3+ {[%clk 0:00:21.3]} 32... Kg7 {[%clk 0:00:03.8]} 33. Rf3
{[%clk 0:00:21.5]} 33... Kh6 {[%clk 0:00:03.9]} 34. Rd4 {[%clk 0:00:21.5]} 34...
Rc1+ {[%clk 0:00:01.1]} 35. Kf2 {[%clk 0:00:22.2]} 35... Rc2+ {[%clk 0:00:01.1]}
36. Kg3 {[%clk 0:00:22.4]} 1-0

[Event "*** Titled Tuesday Blitz"]
[Site "Chess.com"]
[Date "2020.12.01"]
[Round "4"]
[White "MatyChess1"]
[Black "AcsinteMatei"]
[Result "1-0"]
[WhiteElo "2554"]
[BlackElo "2315"]
[TimeControl "180+1"]
[EndTime "10:38:34 PST"]
[Termination "MatyChess1 won on time"]

1. e4 {[%clk 0:03:00.9]} 1... c6 {[%clk 0:02:59]} 2. Nc3 {[%clk 0:03:00]} 2...
d5 {[%clk 0:02:58.1]} 3. Nf3 {[%clk 0:03:00.9]} 3... Bg4 {[%clk 0:02:48.3]} 4.
h3 {[%clk 0:03:01.2]} 4... Bxf3 {[%clk 0:02:46.5]} 5. Qxf3 {[%clk 0:03:02.1]}
5... e6 {[%clk 0:02:47]} 6. Be2 {[%clk 0:02:59.3]} 6... Nd7 {[%clk 0:02:47.3]}
7. O-O {[%clk 0:02:57.3]} 7... Bd6 {[%clk 0:02:47.1]} 8. d4 {[%clk 0:02:57.1]}
8... Ne7 {[%clk 0:02:37.1]} 9. Rd1 {[%clk 0:02:54.1]} 9... Ng6 {[%clk 0:02:35]}
10. g3 {[%clk 0:02:44.4]} 10... Qc7 {[%clk 0:02:22.7]} 11. Bd3 {[%clk
0:02:13.2]} 11... dxe4 {[%clk 0:02:10.4]} 12. Nxe4 {[%clk 0:02:13]} 12... Be7
{[%clk 0:02:10.9]} 13. h4 {[%clk 0:02:12.3]} 13... O-O-O {[%clk 0:01:55.2]} 14.
h5 {[%clk 0:01:53.4]} 14... f5 {[%clk 0:01:38.7]} 15. hxg6 {[%clk 0:01:39.1]}
15... fxe4 {[%clk 0:01:35.5]} 16. Qxe4 {[%clk 0:01:39.5]} 16... hxg6 {[%clk
0:01:17.3]} 17. Qxe6 {[%clk 0:01:37.3]} 17... Bd6 {[%clk 0:01:17.3]} 18. Qxg6
{[%clk 0:01:27.3]} 18... Nf6 {[%clk 0:01:11]} 19. Kg2 {[%clk 0:01:09.8]} 19...
Rdf8 {[%clk 0:01:02.4]} 20. c4 {[%clk 0:00:59.1]} 20... Kb8 {[%clk 0:00:48.2]}
21. c5 {[%clk 0:00:56.4]} 21... Be7 {[%clk 0:00:43.2]} 22. Bf4 {[%clk
0:00:54.5]} 22... Qxf4 {[%clk 0:00:33.9]} 23. gxf4 {[%clk 0:00:54.3]} 23... Nh5
{[%clk 0:00:33.7]} 24. Qe4 {[%clk 0:00:30.7]} 24... Nxf4+ {[%clk 0:00:26.2]} 25.
Kf1 {[%clk 0:00:30.3]} 25... Bh4 {[%clk 0:00:25.2]} 26. Be2 {[%clk 0:00:05]}
26... Nh3 {[%clk 0:00:16.7]} 27. f3 {[%clk 0:00:04.5]} 27... Nf2 {[%clk
0:00:12.1]} 28. Qe5+ {[%clk 0:00:04.1]} 28... Ka8 {[%clk 0:00:11.4]} 29. d5
{[%clk 0:00:05]} 29... Ng4 {[%clk 0:00:11.3]} 30. Qd4 {[%clk 0:00:04.4]} 30...
Nh2+ {[%clk 0:00:02.9]} 31. Kg2 {[%clk 0:00:04.3]} 31... Bf6 {[%clk 0:00:01.3]}
32. dxc6 {[%clk 0:00:04.6]} 1-0

[Event "*** Titled Tuesday Blitz"]
[Site "Chess.com"]
[Date "2020.12.01"]
[Round "4"]
[White "Mazetovic"]
[Black "AldokhinIvan"]
[Result "1-0"]
[WhiteElo "2717"]
[BlackElo "2490"]
[TimeControl "180+1"]
[EndTime "10:38:35 PST"]
[Termination "Mazetovic won on time"]

1. e4 {[%clk 0:03:00.6]} 1... c5 {[%clk 0:03:00.1]} 2. Nf3 {[%clk 0:03:00.3]}
2... e6 {[%clk 0:03:00.5]} 3. c4 {[%clk 0:02:59.1]} 3... a6 {[%clk 0:03:00.1]}
4. Nc3 {[%clk 0:02:59.1]} 4... Qc7 {[%clk 0:02:59.6]} 5. d4 {[%clk 0:02:59.1]}
5... cxd4 {[%clk 0:03:00.2]} 6. Nxd4 {[%clk 0:03:00]} 6... Nf6 {[%clk
0:03:00.6]} 7. Be2 {[%clk 0:02:58.4]} 7... d6 {[%clk 0:03:01]} 8. O-O {[%clk
0:02:58]} 8... Be7 {[%clk 0:03:01.6]} 9. f4 {[%clk 0:02:57.7]} 9... Nbd7 {[%clk
0:03:01.2]} 10. Be3 {[%clk 0:02:57.4]} 10... b6 {[%clk 0:03:01]} 11. Rc1 {[%clk
0:02:56.8]} 11... Bb7 {[%clk 0:03:00.3]} 12. Bf3 {[%clk 0:02:56.8]} 12... O-O
{[%clk 0:02:58.3]} 13. g4 {[%clk 0:02:38.5]} 13... h6 {[%clk 0:02:15.7]} 14. h4
{[%clk 0:02:30.1]} 14... Nc5 {[%clk 0:01:53]} 15. Qc2 {[%clk 0:02:29.1]} 15...
Ne8 {[%clk 0:01:20.2]} 16. g5 {[%clk 0:02:23.8]} 16... hxg5 {[%clk 0:01:12.1]}
17. hxg5 {[%clk 0:02:23.8]} 17... g6 {[%clk 0:01:12.6]} 18. b4 {[%clk
0:02:22.1]} 18... Nd7 {[%clk 0:01:08.6]} 19. Qh2 {[%clk 0:02:18.9]} 19... Ng7
{[%clk 0:00:53]} 20. Kf2 {[%clk 0:02:13]} 20... f5 {[%clk 0:00:52.6]} 21. Nxe6
{[%clk 0:01:45.6]} 21... Nxe6 {[%clk 0:00:43]} 22. Nd5 {[%clk 0:01:40.8]} 22...
Qd8 {[%clk 0:00:37.8]} 23. Rh1 {[%clk 0:01:37.5]} 23... Ng7 {[%clk 0:00:33.6]}
24. Bd4 {[%clk 0:01:31.5]} 24... Ne5 {[%clk 0:00:31.3]} 25. fxe5 {[%clk
0:01:25.9]} 25... dxe5 {[%clk 0:00:14.6]} 26. Qh7+ {[%clk 0:01:02.9]} 26... Kf7
{[%clk 0:00:14]} 27. Bxe5 {[%clk 0:00:58.5]} 27... Rg8 {[%clk 0:00:12]} 28. exf5
{[%clk 0:00:38]} 28... gxf5 {[%clk 0:00:11.9]} 29. Bxg7 {[%clk 0:00:16.2]} 29...
Rxg7 {[%clk 0:00:08.5]} 30. Qxf5+ {[%clk 0:00:15.8]} 30... Kg8 {[%clk 0:00:04]}
31. Qe6+ {[%clk 0:00:15.6]} 31... Rf7 {[%clk 0:00:02.9]} 32. g6 {[%clk
0:00:15.2]} 32... Bh4+ {[%clk 0:00:02]} 33. Ke2 {[%clk 0:00:12.7]} 33... Qf8
{[%clk 0:00:01.3]} 34. gxf7+ {[%clk 0:00:12.7]} 34... Kg7 {[%clk 0:00:01.9]} 35.
Rcg1+ {[%clk 0:00:12.8]} 1-0

[Event "*** Titled Tuesday Blitz"]
[Site "Chess.com"]
[Date "2020.12.01"]
[Round "4"]
[White "AlexeiShirov"]
[Black "Titus369"]
[Result "1-0"]
[WhiteElo "2855"]
[BlackElo "2586"]
[TimeControl "180+1"]
[EndTime "10:38:36 PST"]
[Termination "AlexeiShirov won by resignation"]

1. e4 {[%clk 0:03:00.9]} 1... c5 {[%clk 0:02:58.6]} 2. Nf3 {[%clk 0:03:00]} 2...
d6 {[%clk 0:02:58.6]} 3. d4 {[%clk 0:03:00.1]} 3... cxd4 {[%clk 0:02:59.5]} 4.
Nxd4 {[%clk 0:03:00.3]} 4... Nf6 {[%clk 0:03:00.2]} 5. Nc3 {[%clk 0:03:00.4]}
5... a6 {[%clk 0:03:00.5]} 6. h3 {[%clk 0:03:00.5]} 6... e6 {[%clk 0:02:58.9]}
7. g4 {[%clk 0:02:59.9]} 7... d5 {[%clk 0:02:59.2]} 8. exd5 {[%clk 0:02:50.5]}
8... Nxd5 {[%clk 0:02:59.1]} 9. Nde2 {[%clk 0:02:39.4]} 9... Bb4 {[%clk
0:02:55]} 10. Bg2 {[%clk 0:02:36.2]} 10... Nxc3 {[%clk 0:02:47.8]} 11. Qxd8+
{[%clk 0:02:34]} 11... Kxd8 {[%clk 0:02:48.7]} 12. Nxc3 {[%clk 0:02:33.6]} 12...
Ke7 {[%clk 0:02:34.5]} 13. Bd2 {[%clk 0:02:29.9]} 13... Nc6 {[%clk 0:02:30.8]}
14. O-O-O {[%clk 0:02:27.4]} 14... Rd8 {[%clk 0:02:28]} 15. a3 {[%clk
0:02:23.4]} 15... Bc5 {[%clk 0:02:15.7]} 16. Ne4 {[%clk 0:02:22.2]} 16... Bd4
{[%clk 0:02:14.1]} 17. c3 {[%clk 0:02:12.2]} 17... Be5 {[%clk 0:02:09.6]} 18. f4
{[%clk 0:02:11.8]} 18... Bc7 {[%clk 0:02:07.2]} 19. Rhe1 {[%clk 0:02:05.1]}
19... Kf8 {[%clk 0:02:03.4]} 20. Be3 {[%clk 0:01:57]} 20... Bd7 {[%clk
0:01:57.7]} 21. Nc5 {[%clk 0:01:55.2]} 21... Bc8 {[%clk 0:01:44.5]} 22. Rxd8+
{[%clk 0:01:51.6]} 22... Bxd8 {[%clk 0:01:44.8]} 23. Rd1 {[%clk 0:01:50.9]}
23... Ke8 {[%clk 0:01:39.1]} 24. Ne4 {[%clk 0:01:49.9]} 24... Be7 {[%clk
0:01:38.1]} 25. Nd6+ {[%clk 0:01:48.8]} 25... Bxd6 {[%clk 0:01:31.5]} 26. Rxd6
{[%clk 0:01:48.6]} 26... Bd7 {[%clk 0:01:31.5]} 27. Bb6 {[%clk 0:01:48.4]} 27...
Rc8 {[%clk 0:01:30]} 28. Kc2 {[%clk 0:01:47]} 28... Ke7 {[%clk 0:01:28.5]} 29.
Rd2 {[%clk 0:01:45.1]} 29... f6 {[%clk 0:01:27.4]} 30. b4 {[%clk 0:01:44.1]}
30... Be8 {[%clk 0:01:14.3]} 31. Kb2 {[%clk 0:01:42.4]} 31... h5 {[%clk
0:01:11]} 32. a4 {[%clk 0:01:39.5]} 32... hxg4 {[%clk 0:00:56.1]} 33. hxg4
{[%clk 0:01:38.4]} 33... Bf7 {[%clk 0:00:40.7]} 34. b5 {[%clk 0:01:34.7]} 34...
axb5 {[%clk 0:00:30.1]} 35. axb5 {[%clk 0:01:34.2]} 35... Nb8 {[%clk 0:00:28.3]}
36. Bxb7 {[%clk 0:01:31.9]} 36... Rc4 {[%clk 0:00:28.7]} 37. Rd4 {[%clk
0:01:24]} 37... Rxd4 {[%clk 0:00:25.3]} 38. Bxd4 {[%clk 0:01:22.9]} 38... Kd6
{[%clk 0:00:24.4]} 39. Ka3 {[%clk 0:01:06.4]} 39... e5 {[%clk 0:00:23]} 40.
fxe5+ {[%clk 0:01:05.9]} 40... fxe5 {[%clk 0:00:23.9]} 41. Ba7 {[%clk
0:01:05.4]} 41... Nd7 {[%clk 0:00:23.3]} 42. Kb4 {[%clk 0:01:04.5]} 42... Nf6
{[%clk 0:00:14.2]} 43. g5 {[%clk 0:00:59.1]} 43... Nd5+ {[%clk 0:00:13.3]} 44.
Bxd5 {[%clk 0:00:57.8]} 44... Bxd5 {[%clk 0:00:14.2]} 45. c4 {[%clk 0:00:57.7]}
45... Bf3 {[%clk 0:00:09.9]} 46. Be3 {[%clk 0:00:56]} 46... g6 {[%clk
0:00:07.8]} 47. Ka5 {[%clk 0:00:52.9]} 47... Kc7 {[%clk 0:00:06.7]} 48. Bf2
{[%clk 0:00:49.4]} 48... Kb7 {[%clk 0:00:06.5]} 49. c5 {[%clk 0:00:47.9]} 49...
e4 {[%clk 0:00:06.2]} 50. Be3 {[%clk 0:00:46.9]} 50... Be2 {[%clk 0:00:04.1]}
51. c6+ {[%clk 0:00:46.2]} 51... Kc7 {[%clk 0:00:04.1]} 52. Bf4+ {[%clk
0:00:46.1]} 52... Kc8 {[%clk 0:00:03.7]} 53. b6 {[%clk 0:00:46.2]} 1-0

[Event "*** Titled Tuesday Blitz"]
[Site "Chess.com"]
[Date "2020.12.01"]
[Round "4"]
[White "GP9isback23"]
[Black "Azerichess"]
[Result "0-1"]
[WhiteElo "2521"]
[BlackElo "2955"]
[TimeControl "180+1"]
[EndTime "10:38:36 PST"]
[Termination "Azerichess won by resignation"]

1. d4 {[%clk 0:02:59.1]} 1... d5 {[%clk 0:02:58.5]} 2. Nf3 {[%clk 0:02:59]} 2...
Nf6 {[%clk 0:02:58.1]} 3. c4 {[%clk 0:02:57.7]} 3... c6 {[%clk 0:02:57.4]} 4. e3
{[%clk 0:02:57.5]} 4... e6 {[%clk 0:02:56.2]} 5. Nc3 {[%clk 0:02:55.2]} 5...
Nbd7 {[%clk 0:02:55.8]} 6. Be2 {[%clk 0:02:51.9]} 6... g6 {[%clk 0:02:50.8]} 7.
O-O {[%clk 0:02:49.4]} 7... Bg7 {[%clk 0:02:51.4]} 8. b3 {[%clk 0:02:49.7]} 8...
O-O {[%clk 0:02:51.4]} 9. Ba3 {[%clk 0:02:50.1]} 9... Re8 {[%clk 0:02:51.5]} 10.
Rc1 {[%clk 0:02:50.3]} 10... b6 {[%clk 0:02:46.8]} 11. b4 {[%clk 0:02:48]} 11...
a6 {[%clk 0:02:42.9]} 12. Qb3 {[%clk 0:02:41.1]} 12... b5 {[%clk 0:02:40.5]} 13.
cxd5 {[%clk 0:02:37.5]} 13... cxd5 {[%clk 0:02:40.2]} 14. Bb2 {[%clk 0:02:36.5]}
14... Nb6 {[%clk 0:02:33.1]} 15. a4 {[%clk 0:02:35.9]} 15... bxa4 {[%clk
0:02:22.4]} 16. Nxa4 {[%clk 0:02:34.3]} 16... Nxa4 {[%clk 0:02:23]} 17. Qxa4
{[%clk 0:02:35]} 17... Bd7 {[%clk 0:02:23.4]} 18. Qc2 {[%clk 0:02:06.3]} 18...
Ne4 {[%clk 0:02:20]} 19. Nd2 {[%clk 0:01:43.1]} 19... Nd6 {[%clk 0:02:08.8]} 20.
Nb3 {[%clk 0:01:19.6]} 20... Bb5 {[%clk 0:02:05.3]} 21. Nc5 {[%clk 0:01:19]}
21... Nc4 {[%clk 0:02:04.9]} 22. Bc3 {[%clk 0:01:15.5]} 22... Bf8 {[%clk
0:02:04.1]} 23. Ra1 {[%clk 0:01:13.9]} 23... Bd6 {[%clk 0:02:04.1]} 24. Ra2
{[%clk 0:01:06.2]} 24... Re7 {[%clk 0:01:53.2]} 25. Rfa1 {[%clk 0:01:05.6]}
25... Rea7 {[%clk 0:01:53.7]} 26. Be1 {[%clk 0:00:59.1]} 26... h5 {[%clk
0:01:47.3]} 27. Bf3 {[%clk 0:00:47.6]} 27... Kg7 {[%clk 0:01:44.9]} 28. Qc1
{[%clk 0:00:43.4]} 28... Qf6 {[%clk 0:01:30.5]} 29. e4 {[%clk 0:00:37.4]} 29...
Bf4 {[%clk 0:01:30.2]} 30. Qc2 {[%clk 0:00:34.3]} 30... Qd8 {[%clk 0:01:15.1]}
31. Bc3 {[%clk 0:00:30.8]} 31... Bg5 {[%clk 0:01:11.7]} 32. e5 {[%clk
0:00:29.2]} 32... Be7 {[%clk 0:01:10.8]} 33. Bd1 {[%clk 0:00:26.4]} 33... Qb6
{[%clk 0:01:08.1]} 34. Qc1 {[%clk 0:00:26.4]} 34... a5 {[%clk 0:00:53.6]} 35.
bxa5 {[%clk 0:00:23]} 35... Nxa5 {[%clk 0:00:54.5]} 36. Bxa5 {[%clk 0:00:20.4]}
36... Rxa5 {[%clk 0:00:54.2]} 37. Rxa5 {[%clk 0:00:20.2]} 37... Rxa5 {[%clk
0:00:55.1]} 38. Rxa5 {[%clk 0:00:19.8]} 38... Qxa5 {[%clk 0:00:56]} 39. Bf3
{[%clk 0:00:19.6]} 39... Bc4 {[%clk 0:00:52.9]} 40. h3 {[%clk 0:00:11.2]} 40...
Qb6 {[%clk 0:00:46.8]} 41. Qf4 {[%clk 0:00:10.7]} 41... Qb2 {[%clk 0:00:44.8]}
42. g4 {[%clk 0:00:07.6]} 42... hxg4 {[%clk 0:00:42.5]} 43. hxg4 {[%clk
0:00:07.8]} 43... Qb1+ {[%clk 0:00:41.2]} 44. Kg2 {[%clk 0:00:07.9]} 44... Qf1+
{[%clk 0:00:40.8]} 45. Kh2 {[%clk 0:00:06.7]} 45... Qxf2+ {[%clk 0:00:40.5]} 46.
Kh3 {[%clk 0:00:05.5]} 46... Bf1+ {[%clk 0:00:38.9]} 0-1

[Event "*** Titled Tuesday Blitz"]
[Site "Chess.com"]
[Date "2020.12.01"]
[Round "4"]
[White "sergeikim"]
[Black "Zkid"]
[Result "1-0"]
[WhiteElo "2529"]
[BlackElo "2772"]
[TimeControl "180+1"]
[EndTime "10:38:36 PST"]
[Termination "sergeikim won on time"]

1. d4 {[%clk 0:03:00.9]} 1... d5 {[%clk 0:01:57.1]} 2. c4 {[%clk 0:03:00.6]}
2... dxc4 {[%clk 0:01:55.5]} 3. e3 {[%clk 0:02:59.9]} 3... Nf6 {[%clk
0:01:54.9]} 4. Bxc4 {[%clk 0:02:59.5]} 4... e6 {[%clk 0:01:55.5]} 5. Nf3 {[%clk
0:02:58.4]} 5... c5 {[%clk 0:01:55.8]} 6. O-O {[%clk 0:02:57.4]} 6... a6 {[%clk
0:01:56.4]} 7. a4 {[%clk 0:02:56.3]} 7... Nc6 {[%clk 0:01:55.3]} 8. Qe2 {[%clk
0:02:56.3]} 8... Be7 {[%clk 0:01:54]} 9. Rd1 {[%clk 0:02:56.4]} 9... Qc7 {[%clk
0:01:54.4]} 10. Nc3 {[%clk 0:02:53.4]} 10... O-O {[%clk 0:01:54.2]} 11. b3
{[%clk 0:02:49.9]} 11... cxd4 {[%clk 0:01:52.5]} 12. exd4 {[%clk 0:02:49.1]}
12... Nb4 {[%clk 0:01:53.1]} 13. Bb2 {[%clk 0:02:47.3]} 13... b6 {[%clk
0:01:51.7]} 14. Rac1 {[%clk 0:02:45.9]} 14... Qf4 {[%clk 0:01:28]} 15. d5 {[%clk
0:02:25.8]} 15... Bc5 {[%clk 0:01:17.1]} 16. dxe6 {[%clk 0:02:13]} 16... Bxe6
{[%clk 0:01:16.7]} 17. Bxe6 {[%clk 0:02:11.8]} 17... fxe6 {[%clk 0:01:11.4]} 18.
Qxe6+ {[%clk 0:02:01.8]} 18... Kh8 {[%clk 0:01:11.2]} 19. Ne2 {[%clk 0:01:38.5]}
19... Qh6 {[%clk 0:01:08.3]} 20. Bxf6 {[%clk 0:01:20.3]} 20... Rae8 {[%clk
0:01:04.5]} 21. Qd7 {[%clk 0:01:06.8]} 21... Qxf6 {[%clk 0:00:53.6]} 22. Ng3
{[%clk 0:01:04.4]} 22... Rd8 {[%clk 0:00:52.7]} 23. Qg4 {[%clk 0:01:01.5]} 23...
Nd3 {[%clk 0:00:50.4]} 24. Ne4 {[%clk 0:00:57.5]} 24... Qb2 {[%clk 0:00:44.6]}
25. Rb1 {[%clk 0:00:54.9]} 25... Nxf2 {[%clk 0:00:38.5]} 26. Nxf2 {[%clk
0:00:52.7]} 26... Qxf2+ {[%clk 0:00:39.4]} 27. Kh1 {[%clk 0:00:53]} 27... Rxd1+
{[%clk 0:00:39.1]} 28. Rxd1 {[%clk 0:00:52.1]} 28... Qc2 {[%clk 0:00:39.6]} 29.
Ng5 {[%clk 0:00:42.3]} 29... Qxb3 {[%clk 0:00:34.9]} 30. h3 {[%clk 0:00:29.2]}
30... Re8 {[%clk 0:00:20]} 31. Qh5 {[%clk 0:00:27.5]} 31... Qxd1+ {[%clk
0:00:08.5]} 32. Qxd1 {[%clk 0:00:26.2]} 32... h6 {[%clk 0:00:09.2]} 33. Nf3
{[%clk 0:00:25.1]} 33... a5 {[%clk 0:00:06.5]} 34. Qd7 {[%clk 0:00:24]} 34...
Re7 {[%clk 0:00:06.1]} 35. Qd8+ {[%clk 0:00:23.2]} 35... Kh7 {[%clk 0:00:06.7]}
36. g4 {[%clk 0:00:23.2]} 36... Re3 {[%clk 0:00:05.5]} 37. Kg2 {[%clk
0:00:20.2]} 37... Re2+ {[%clk 0:00:04.9]} 38. Kg3 {[%clk 0:00:19.6]} 38... Bf2+
{[%clk 0:00:03.8]} 39. Kf4 {[%clk 0:00:18.8]} 1-0